bitfinex/quotes_BTCUSD_20250320
["timestamp","ask_amount","ask_price","bid_price","bid_amount"]
[1742432805361,0.01159,86280.0,86279.0,1e-06]
[1742432805560,0.24195269,86280.0,86279.0,1e-06]
[1742432809475,0.18544,86282.0,86279.0,1e-06]
[1742432809677,0.197032,86280.0,86279.0,1e-06]
[1742432809801,0.197032,86280.0,86279.0,0.136521]
[1742432811143,0.24195269,86280.0,86279.0,1e-06]
[1742432813517,0.54195269,86280.0,86279.0,1e-06]
[1742432815486,0.54212219,86280.0,86279.0,1e-06]
[1742432815883,0.58732219,86280.0,86279.0,1e-06]
[1742432816788,0.011592,86262.0,86261.0,1.5]
[1742432816991,0.24320295,86262.0,86261.0,1.5]
[1742432817174,0.197079,86259.0,86247.0,0.13652]
[1742432817376,0.24341054,86259.0,86232.0,0.839704]
[1742432817610,0.24341054,86259.0,86242.0,0.13652]
[1742432821142,0.24341054,86259.0,86252.0,0.185502]
[1742432821143,0.197079,86259.0,86252.0,0.185502]
[1742432821354,0.197079,86259.0,86249.0,0.185507]
[1742432821577,0.197079,86259.0,86251.0,0.185504]
[1742432821774,0.197066,86266.0,86259.0,0.185487]
[1742432821998,0.24312874,86266.0,86259.0,0.185487]
[1742432822360,0.18547,86267.0,86262.0,0.185479]
[1742432822556,0.0001695,86280.0,86272.0,0.185457]
[1742432822557,0.01159,86277.0,86272.0,0.185457]
[1742432822781,0.1123962,86280.0,86273.0,0.13652]
[1742432822946,0.197034,86279.0,86273.0,0.13652]
[1742432823401,0.1123962,86280.0,86274.0,0.185455]
[1742432823735,0.1123962,86280.0,86279.0,0.05689]
[1742432823736,0.0001695,86280.0,86279.0,0.05689]
[1742432823961,0.0001695,86280.0,86279.0,0.0453]
[1742432824313,0.0001695,86280.0,86279.0,0.05689]
[1742432824520,0.0001695,86280.0,86279.0,0.0453]
[1742432824721,0.01159,86279.0,86273.0,0.13652]
[1742432824951,0.01159,86278.0,86273.0,0.13652]
[1742432825163,0.197037,86278.0,86273.0,0.13652]
[1742432825407,0.197037,86278.0,86277.0,1.5]
[1742432826191,0.01159,86279.0,86277.0,1.5]
[1742432826387,0.0001695,86280.0,86277.0,1.5]
[1742432826795,0.01159,86279.0,86277.0,1.5]
[1742432827196,0.0001695,86280.0,86277.0,1.5]
[1742432827400,0.0001695,86280.0,86277.0,1.697037]
[1742432827600,0.0001695,86278.0,86277.0,1.685447]
[1742432828236,0.0001695,86278.0,86277.0,1.697037]
[1742432829801,0.0001695,86278.0,86277.0,1.89411203]
[1742432830287,0.0001695,86278.0,86277.0,2.20865288]
[1742432830542,0.0001695,86278.0,86277.0,2.25475288]
[1742432832247,0.0001695,86278.0,86277.0,2.26343094]
[1742432833190,0.0001695,86278.0,86277.0,2.39991094]
[1742432834785,0.0001695,86278.0,86277.0,2.38537009]
[1742432836071,0.0001695,86278.0,86277.0,2.24021203]
[1742432836315,0.0001695,86278.0,86277.0,2.07669203]
[1742432837878,0.0001695,86278.0,86277.0,1.820637]
[1742432838162,0.0001695,86278.0,86277.0,1.957117]
[1742432839288,0.0001695,86278.0,86277.0,1.63644]
[1742432839289,0.0117595,86278.0,86277.0,1.63644]
[1742432840067,0.0117595,86278.0,86277.0,1.5]
[1742432840275,0.0117595,86278.0,86277.0,1.63644]
[1742432840871,0.05681453,86278.0,86277.0,1.5]
[1742432854386,0.05652476,86278.0,86277.0,1.5]
[1742432855238,0.01159,86276.0,86275.0,0.0003392]
[1742432864596,0.05669436,86278.0,86275.0,0.0460392]
[1742432864597,0.0001696,86278.0,86275.0,0.0460392]
[1742432864793,0.0001696,86278.0,86276.0,0.18545]
[1742432865172,0.0001696,86278.0,86277.0,1.5]
[1742432866670,0.0001696,86278.0,86277.0,1.51159]
[1742432867475,0.0001696,86278.0,86277.0,2.20812503]
[1742432873144,0.0001696,86278.0,86277.0,2.50812503]
[1742432873901,0.0001696,86278.0,86277.0,2.50846403]
[1742432876335,0.0001695,86280.0,86279.0,0.01159]
[1742432876535,0.0001695,86280.0,86279.0,0.43232373]
[1742432876743,0.0001695,86280.0,86279.0,0.43116503]
[1742432877189,0.0001695,86280.0,86279.0,1.93116503]
[1742432877629,0.0001695,86280.0,86279.0,2.01026503]
[1742432878509,0.0001695,86280.0,86279.0,2.02480588]
[1742432879573,0.0001695,86280.0,86279.0,2.43970588]
[1742432881416,0.0001695,86280.0,86279.0,2.56152503]
[1742432881816,0.0001695,86280.0,86279.0,2.42516503]
[1742432881995,0.0001695,86280.0,86279.0,2.56152503]
[1742432883718,0.0001695,86280.0,86279.0,1.9149]
[1742432884146,0.0001695,86280.0,86279.0,2.05126]
[1742432885201,0.0001695,86280.0,86279.0,2.05122]
[1742432885407,0.0001695,86280.0,86279.0,1.63632]
[1742432888067,0.0001695,86280.0,86279.0,1.64791]
[1742432888785,0.0001695,86280.0,86279.0,1.76748503]
[1742432889545,0.0001695,86280.0,86279.0,2.19918503]
[1742432890120,0.0001695,86280.0,86279.0,2.21372588]
[1742432891336,0.0001695,86280.0,86279.0,2.62862588]
[1742432892666,0.0001695,86280.0,86279.0,2.49230588]
[1742432892884,0.0001695,86280.0,86279.0,2.62862588]
[1742432895206,0.0001695,86280.0,86279.0,2.75102588]
[1742432895413,0.0001695,86280.0,86279.0,2.62862588]
[1742432901333,5e-07,86280.0,86279.0,2.63362588]
[1742432901542,5e-07,86280.0,86279.0,2.66982438]
[1742432902371,0.0003398,86308.0,86279.0,2.66982438]
[1742432902372,0.000339,86324.0,86323.0,0.196934]
[1742432902651,0.011923,86324.0,86323.0,0.13628]
[1742432902805,0.19769098,86324.0,86323.0,0.13628]
[1742432903013,0.00075698,86324.0,86323.0,0.13628]
[1742432903392,0.00075698,86324.0,86323.0,1.63628]
[1742432904416,0.19768898,86324.0,86323.0,1.63628]
[1742432904631,0.19768898,86324.0,86323.0,1.5]
[1742432904835,0.19768898,86324.0,86323.0,0.13628]
[1742432905043,0.27308898,86324.0,86323.0,0.13628]
[1742432905453,0.196938,86321.0,86320.0,2.07676]
[1742432905651,0.19684008,86321.0,86320.0,2.21304]
[1742432907000,0.00075698,86324.0,86320.0,2.398394]
[1742432907270,0.01234098,86324.0,86320.0,2.21304]
[1742432907498,0.00075698,86324.0,86320.0,2.21304]
[1742432907994,0.00075698,86324.0,86320.0,2.398395]
[1742432909373,0.00075698,86324.0,86323.0,0.196934]
[1742432910181,0.00075698,86324.0,86323.0,0.31766729]
[1742432910391,0.00075698,86324.0,86323.0,0.31650903]
[1742432911528,0.00075698,86324.0,86323.0,0.6282784]
[1742432913318,0.00075698,86324.0,86323.0,0.72431925]
[1742432913673,0.00075698,86324.0,86323.0,0.77171925]
[1742432914323,9.8e-07,86324.0,86323.0,0.77671925]
[1742432915292,9.8e-07,86324.0,86323.0,2.27671925]
[1742432916381,0.0109964,86340.0,86328.0,0.51646285]
[1742432916382,9.8e-07,86329.0,86328.0,0.51646285]
[1742432916580,4.275e-05,86329.0,86328.0,1.13253788]
[1742432916808,4.275e-05,86329.0,86328.0,1.20633788]
[1742432917200,4.275e-05,86329.0,86328.0,2.70633788]
[1742432918187,4.275e-05,86329.0,86328.0,2.68494686]
[1742432918323,4.275e-05,86329.0,86328.0,2.82114686]
[1742432919551,4.275e-05,86329.0,86328.0,2.82614686]
[1742432921844,0.00021225,86329.0,86328.0,2.82614686]
[1742432925130,0.00021225,86329.0,86328.0,2.68994686]
[1742432925397,0.00021225,86329.0,86328.0,2.82610686]
[1742432926253,0.00021225,86329.0,86328.0,2.82110686]
[1742432926465,0.00021225,86329.0,86328.0,3.39750686]
[1742432927294,0.00021225,86329.0,86328.0,3.31590686]
[1742432928371,0.011584,86322.0,86321.0,0.000339]
[1742432928581,0.196936,86322.0,86321.0,0.000339]
[1742432929021,0.196936,86322.0,86321.0,1.636499]
[1742432929415,0.196936,86322.0,86321.0,1.500339]
[1742432929557,0.196936,86322.0,86321.0,1.636499]
[1742432929733,0.196936,86322.0,86321.0,1.500339]
[1742432929940,0.196936,86322.0,86321.0,1.636499]
[1742432935723,0.196936,86322.0,86321.0,1.500339]
[1742432935925,0.196936,86322.0,86321.0,1.636499]
[1742432940005,0.08181225,86329.0,86321.0,1.636499]
[1742432940232,0.18555025,86329.0,86323.0,0.185348]
[1742432940436,0.19713325,86329.0,86324.0,0.185346]
[1742432940654,0.185339,86328.0,86324.0,0.185346]
[1742432940839,0.185339,86328.0,86327.0,1.5]
[1742432941036,0.00021225,86329.0,86328.0,0.011583]
[1742432941389,0.00021225,86329.0,86327.0,1.685339]
[1742432941390,0.00021225,86329.0,86327.0,1.5]
[1742432942938,0.00021225,86329.0,86328.0,0.011583]
[1742432943350,0.00021225,86329.0,86328.0,1.511583]
[1742432944355,0.00021225,86329.0,86328.0,1.5]
[1742432944602,0.00021225,86329.0,86328.0,1.63115803]
[1742432944806,0.01179525,86329.0,86328.0,1.5]
[1742432945022,0.01179525,86329.0,86328.0,1.63616]
[1742432946671,0.00021225,86329.0,86328.0,1.63616]
[1742432950245,0.00021225,86329.0,86328.0,1.76731803]
[1742432952344,0.00021225,86329.0,86328.0,1.77589745]
[1742432953549,0.00021225,86329.0,86328.0,1.82209745]
[1742432954335,0.00021225,86329.0,86328.0,2.12209745]
[1742432955909,0.00021225,86329.0,86328.0,2.1366383]
[1742432956325,2.5e-07,86329.0,86328.0,2.1366383]
[1742432956890,2.5e-07,86329.0,86328.0,2.5565383]
[1742432957094,0.0109964,86340.0,86328.0,2.5565383]
[1742432957095,6.5e-07,86340.0,86339.0,0.496898]
[1742432957324,0.0001694,86363.0,86358.0,0.011579]
[1742432957527,0.00112523,86359.0,86358.0,1.03022679]
[1742432957736,0.00112523,86359.0,86358.0,2.52906903]
[1742432958418,0.00112523,86359.0,86358.0,2.60946903]
[1742432958628,0.00112523,86359.0,86358.0,2.65736903]
[1742432959048,0.00112523,86359.0,86358.0,2.97190988]
[1742432959666,0.00112523,86359.0,86358.0,2.98365586]
[1742432959906,0.001,86389.0,86388.0,0.196785]
[1742432960106,0.0001696,86411.0,86409.0,0.185165]
[1742432960313,0.00058722,86411.0,86410.0,0.13608]
[1742432960991,0.00058722,86411.0,86410.0,0.321243]
[1742432962257,0.00058722,86411.0,86410.0,0.33004011]
[1742432963410,0.00058722,86411.0,86410.0,0.34161211]
[1742432964463,0.00058722,86411.0,86410.0,0.46118714]
[1742432965301,0.00058722,86411.0,86410.0,1.96118714]
[1742432967766,0.00058722,86411.0,86410.0,1.69396011]
[1742432967983,0.00058722,86411.0,86410.0,0.136]
[1742432968399,0.00058722,86411.0,86410.0,1.636]
[1742432968827,0.00058722,86411.0,86410.0,1.5]
[1742432969023,0.00058722,86411.0,86410.0,1.647572]
[1742432969596,0.00058722,86411.0,86410.0,1.832735]
[1742432971103,0.00058722,86411.0,86410.0,2.408815]
[1742432971557,0.00058722,86411.0,86410.0,0.908815]
[1742432972029,0.00058722,86411.0,86410.0,0.897203]
[1742432974960,0.00058722,86411.0,86410.0,0.761243]
[1742432975225,0.00058722,86411.0,86410.0,0.897203]
[1742432975430,0.00058722,86411.0,86410.0,2.397203]
[1742432979564,0.01215922,86411.0,86410.0,2.212]
[1742432979770,0.00058722,86411.0,86410.0,2.212]
[1742432980520,0.18574822,86411.0,86410.0,2.212]
[1742432980960,0.00058722,86411.0,86410.0,2.212]
[1742432982303,0.00058722,86411.0,86410.0,2.397163]
[1742432982726,0.00058722,86411.0,86410.0,2.212]
[1742432983614,0.00058722,86411.0,86410.0,2.397163]
[1742432983843,0.00058722,86411.0,86410.0,2.408735]
[1742432986765,0.00058722,86411.0,86410.0,2.52831003]
[1742432988547,0.00058722,86411.0,86410.0,2.408735]
[1742432989357,0.01157,86426.0,86410.0,2.408735]
[1742432989358,0.0811695,86446.0,86438.0,0.011568]
[1742432989531,0.0001695,86446.0,86442.0,0.196662]
[1742432989675,0.00029477,86446.0,86439.0,0.147448]
[1742432990087,0.00029477,86446.0,86445.0,0.185088]
[1742432990517,0.00029477,86446.0,86445.0,0.196656]
[1742432990720,0.00029477,86446.0,86445.0,0.19781281]
[1742432991533,0.00029477,86446.0,86445.0,0.196656]
[1742432992148,0.00029477,86446.0,86445.0,0.21966933]
[1742432993053,0.00029477,86446.0,86445.0,0.22825672]
[1742432994488,0.00029477,86446.0,86445.0,0.36413672]
[1742432995282,0.00029477,86446.0,86445.0,1.86413672]
[1742432997467,0.00029477,86446.0,86445.0,1.70810133]
[1742432997668,0.00029477,86446.0,86445.0,0.13584]
[1742433003052,0.00029477,86446.0,86445.0,0.151408]
[1742433004288,0.00019694,86446.0,86445.0,0.151408]
[1742433004458,0.00019694,86446.0,86445.0,0.004]
[1742433004673,0.00019694,86446.0,86445.0,0.13984]
[1742433005075,0.00019694,86446.0,86445.0,0.151408]
[1742433005296,0.00019694,86446.0,86445.0,1.651408]
[1742433006711,0.00019694,86446.0,86445.0,1.77098303]
[1742433006911,0.00019694,86446.0,86445.0,1.651368]
[1742433007135,0.00019694,86446.0,86445.0,1.77094303]
[1742433007336,0.00019694,86446.0,86445.0,1.75448739]
[1742433008625,0.00019694,86446.0,86445.0,2.33024739]
[1742433010151,0.00019694,86446.0,86445.0,2.32824739]
[1742433010762,0.00019694,86446.0,86445.0,2.229128]
[1742433011949,0.00019694,86446.0,86445.0,2.21756]
[1742433012165,0.00019694,86446.0,86445.0,2.229128]
[1742433012981,0.00019694,86446.0,86445.0,2.21756]
[1742433013182,0.00019694,86446.0,86445.0,2.229128]
[1742433013868,0.00019694,86446.0,86445.0,2.21756]
[1742433014073,0.00019694,86446.0,86445.0,1.506]
[1742433014074,0.04555635,86446.0,86445.0,1.506]
[1742433014277,0.04555635,86446.0,86445.0,0.006]
[1742433015107,0.05716185,86446.0,86445.0,0.01818]
[1742433015311,0.05716185,86446.0,86445.0,1.504]
[1742433016752,0.05716185,86446.0,86445.0,1.5]
[1742433016954,0.05916185,86446.0,86445.0,1.5]
[1742433017157,0.06016185,86446.0,86445.0,1.5]
[1742433017351,0.05916185,86446.0,86445.0,1.5]
[1742433017559,0.05716185,86446.0,86445.0,1.5]
[1742433017756,0.06016185,86446.0,86445.0,1.5]
[1742433018340,0.06016185,86446.0,86440.0,0.1358]
[1742433018341,0.011568,86441.0,86440.0,0.1358]
[1742433018549,0.23079196,86441.0,86440.0,0.1358]
[1742433018756,0.23079196,86441.0,86440.0,1.6358]
[1742433018960,0.23079196,86441.0,86440.0,1.5]
[1742433021187,0.196683,86433.0,86432.0,0.1358]
[1742433022340,0.196695,86428.0,86427.0,0.57572]
[1742433022538,0.196695,86428.0,86427.0,0.71152]
[1742433023718,0.196695,86428.0,86427.0,0.71452]
[1742433024472,0.196695,86428.0,86427.0,0.71752]
[1742433025334,0.196695,86428.0,86427.0,2.21752]
[1742433025927,0.23169202,86428.0,86427.0,1.503]
[1742433026133,0.196699,86426.0,86425.0,0.0003392]
[1742433026438,0.2318299,86426.0,86425.0,0.0003392]
[1742433026762,0.5318299,86426.0,86425.0,0.0003392]
[1742433026961,0.5318299,86426.0,86388.0,0.011575]
[1742433026962,0.196753,86402.0,86401.0,0.1358]
[1742433028201,0.19687816,86402.0,86401.0,0.1358]
[1742433028672,0.196763,86398.0,86397.0,0.1036569]
[1742433028822,0.196763,86398.0,86397.0,0.2394569]
[1742433029258,0.23376883,86398.0,86397.0,0.2394569]
[1742433030071,0.23376883,86398.0,86397.0,0.2404569]
[1742433030279,0.24510756,86398.0,86397.0,0.2404569]
[1742433030922,0.24510756,86398.0,86397.0,0.1368]
[1742433031097,0.24510756,86398.0,86397.0,0.001]
[1742433031295,0.24510756,86398.0,86397.0,0.002]
[1742433032165,0.24510756,86398.0,86397.0,0.001]
[1742433033160,0.24510756,86398.0,86389.0,0.0003386]
[1742433033161,0.196781,86390.0,86389.0,0.0003386]
[1742433034659,0.196781,86390.0,86389.0,0.0023386]
[1742433035302,0.196781,86390.0,86389.0,1.5023386]
[1742433035510,0.196781,86390.0,86389.0,1.5053386]
[1742433035886,0.196781,86390.0,86389.0,1.5023386]
[1742433036094,0.23432274,86390.0,86389.0,1.5023386]
[1742433036521,0.23432274,86390.0,86389.0,1.5003386]
[1742433036868,0.23432274,86390.0,86389.0,1.5053386]
[1742433037064,0.23432274,86390.0,86389.0,1.5033386]
[1742433037353,0.23432274,86390.0,86389.0,1.5003386]
[1742433037566,0.09013873,86398.0,86390.0,0.011575]
[1742433037767,0.4086,86405.0,86401.0,0.196756]
[1742433037968,0.4086,86405.0,86398.0,0.1358]
[1742433038218,0.1122267,86410.0,86400.0,0.196757]
[1742433038437,0.323783,86430.0,86401.0,0.51020532]
[1742433038438,0.2973467,86430.0,86401.0,0.51020532]
[1742433038677,0.185127,86428.0,86401.0,0.50904803]
[1742433038928,0.01157,86427.0,86417.0,0.196719]
[1742433039181,0.01157,86427.0,86418.0,0.1358]
[1742433039436,0.185127,86428.0,86426.0,0.185129]
[1742433039437,0.00012511,86428.0,86426.0,0.185129]
[1742433039699,0.00012511,86428.0,86427.0,0.01057]
[1742433039961,0.00012511,86428.0,86426.0,0.185129]
[1742433040223,0.00012511,86428.0,86426.0,0.196699]
[1742433040507,0.00012511,86428.0,86427.0,0.01157]
[1742433041242,0.00012511,86428.0,86427.0,0.09322701]
[1742433042232,0.00012511,86428.0,86427.0,0.01157]
[1742433042923,0.00012511,86428.0,86427.0,0.01457]
[1742433043153,0.00012511,86428.0,86427.0,0.01157]
[1742433043434,0.00012511,86428.0,86427.0,0.02472697]
[1742433043640,0.00012511,86428.0,86427.0,0.02357]
[1742433043857,0.00012511,86428.0,86427.0,0.01757]
[1742433044067,0.00012511,86428.0,86427.0,0.02357]
[1742433044719,0.00012511,86428.0,86427.0,0.02472694]
[1742433045338,0.00012511,86428.0,86427.0,1.52472694]
[1742433045550,0.00012511,86428.0,86427.0,1.52357]
[1742433049263,0.00012511,86428.0,86427.0,2.09945]
[1742433052069,0.00012511,86428.0,86427.0,2.0997892]
[1742433052278,0.00029471,86428.0,86427.0,2.0997892]
[1742433061157,0.00029471,86428.0,86427.0,2.21936423]
[1742433061386,7.1e-07,86428.0,86427.0,2.53390508]
[1742433061589,7.1e-07,86428.0,86427.0,2.61440508]
[1742433061788,7.1e-07,86428.0,86427.0,2.65990508]
[1742433062139,7.1e-07,86428.0,86427.0,2.65390508]
[1742433062754,7.1e-07,86428.0,86427.0,2.65990508]
[1742433062954,7.1e-07,86428.0,86427.0,2.65390508]
[1742433063796,7.1e-07,86428.0,86427.0,2.64790508]
[1742433063993,7.1e-07,86428.0,86427.0,2.65390508]
[1742433064402,7.1e-07,86428.0,86427.0,3.06880508]
[1742433065338,7.1e-07,86428.0,86427.0,3.07480508]
[1742433065770,0.19275638,86464.0,86456.0,0.185064]
[1742433066074,8.685e-05,86464.0,86457.0,0.13568]
[1742433066283,8.685e-05,86464.0,86458.0,0.18506]
[1742433066490,0.01198383,86464.0,86459.0,1.5]
[1742433066604,0.196615,86463.0,86459.0,1.5]
[1742433067009,0.196619,86462.0,86459.0,1.5]
[1742433067215,0.011566,86460.0,86459.0,1.5]
[1742433067627,0.011566,86460.0,86459.0,1.63568]
[1742433068796,0.011566,86460.0,86459.0,0.13668]
[1742433069417,0.087866,86460.0,86459.0,0.13668]
[1742433070049,0.087866,86460.0,86459.0,0.001]
[1742433070202,0.12072182,86460.0,86459.0,0.002]
[1742433070604,0.12072182,86460.0,86459.0,0.001]
[1742433070809,0.196635,86454.0,86453.0,0.13568]
[1742433071011,0.011566,86453.0,86452.0,1.5]
[1742433071168,0.04489008,86453.0,86452.0,1.5]
[1742433071576,0.011567,86450.0,86446.0,0.57576]
[1742433071794,0.185077,86451.0,86446.0,0.57576]
[1742433072053,0.185083,86448.0,86446.0,0.57576]
[1742433072263,0.196629,86457.0,86448.0,0.196649]
[1742433072472,0.19662,86461.0,86453.0,0.011566]
[1742433072702,0.03315684,86463.0,86456.0,0.185064]
[1742433072906,0.19652669,86464.0,86457.0,0.13564]
[1742433073112,0.20809169,86464.0,86457.0,0.13564]
[1742433073314,0.01147869,86464.0,86458.0,0.18506]
[1742433073515,0.19652769,86464.0,86457.0,0.147206]
[1742433073827,0.185051,86463.0,86457.0,0.147206]
[1742433074002,0.185051,86463.0,86457.0,0.13564]
[1742433074003,0.196616,86463.0,86457.0,0.13564]
[1742433074408,0.185059,86459.0,86457.0,0.13664]
[1742433074616,0.011566,86458.0,86457.0,0.13664]
[1742433074808,0.011566,86458.0,86457.0,0.13564]
[1742433075016,0.011565,86462.0,86457.0,0.13564]
[1742433075223,0.196616,86463.0,86457.0,1.63664]
[1742433075418,0.011565,86462.0,86457.0,1.63664]
[1742433075643,0.19662,86461.0,86457.0,1.63564]
[1742433076018,0.19662,86461.0,86457.0,1.63764]
[1742433076241,0.19662,86461.0,86457.0,1.63864]
[1742433076438,0.1967896,86461.0,86457.0,1.63764]
[1742433076853,0.1967896,86461.0,86457.0,1.63864]
[1742433076999,0.1852246,86461.0,86457.0,1.63864]
[1742433077200,0.1852246,86461.0,86457.0,1.63764]
[1742433077660,0.1967896,86461.0,86457.0,1.63864]
[1742433078990,0.0001696,86461.0,86460.0,0.011566]
[1742433079711,0.0001696,86461.0,86460.0,0.07076021]
[1742433080614,0.0001696,86461.0,86460.0,0.07160369]
[1742433080839,0.0001696,86461.0,86460.0,0.07260369]
[1742433081558,0.0001696,86461.0,86460.0,0.02210369]
[1742433081786,0.0001696,86461.0,86460.0,0.02410369]
[1742433082481,0.0001696,86461.0,86460.0,0.02210369]
[1742433082758,0.0001696,86461.0,86460.0,0.02526015]
[1742433082999,0.0001696,86461.0,86460.0,0.44483518]
[1742433083220,0.0001696,86461.0,86460.0,0.44367872]
[1742433084159,0.0001696,86461.0,86460.0,0.43967872]
[1742433084416,0.0001696,86461.0,86460.0,0.44567872]
[1742433084662,0.0001696,86461.0,86460.0,0.45167872]
[1742433085124,8.685e-05,86464.0,86460.0,0.45167872]
[1742433085125,4.5e-07,86464.0,86463.0,0.196615]
[1742433085361,4.5e-07,86464.0,86463.0,0.79892061]
[1742433085572,4.5e-07,86464.0,86463.0,1.21266443]
[1742433086030,4.5e-07,86464.0,86463.0,2.71266443]
[1742433086448,4.5e-07,86464.0,86463.0,2.71866443]
[1742433087495,0.0001695,86498.0,86497.0,0.184977]
[1742433087739,0.00058639,86498.0,86497.0,0.332138]
[1742433088363,0.00058639,86498.0,86493.0,0.5756]
[1742433088577,0.00058639,86498.0,86494.0,0.1356]
[1742433089030,0.00058639,86498.0,86494.0,0.320583]
[1742433089188,0.00058639,86498.0,86497.0,0.002]
[1742433089536,0.00058639,86498.0,86497.0,0.01279976]
[1742433089740,0.00058639,86498.0,86497.0,0.13956]
[1742433089999,0.00058639,86498.0,86497.0,0.13756]
[1742433090824,0.00058639,86498.0,86497.0,0.13956]
[1742433091265,0.00058639,86498.0,86497.0,0.13756]
[1742433091670,0.00048859,86498.0,86497.0,0.13756]
[1742433092060,0.00048859,86498.0,86497.0,0.322537]
[1742433092284,0.00048859,86498.0,86497.0,0.334098]
[1742433092499,0.00048859,86498.0,86497.0,0.323537]
[1742433092662,0.00048859,86498.0,86497.0,0.33208489]
[1742433093738,0.00048859,86498.0,86497.0,0.34364589]
[1742433094667,0.00048859,86498.0,86497.0,0.34264589]
[1742433095083,0.00048859,86498.0,86497.0,0.34464589]
[1742433095300,0.00048859,86498.0,86497.0,1.83308489]
[1742433095743,0.00048859,86498.0,86497.0,1.84464589]
[1742433095992,0.00048859,86498.0,86497.0,1.64610789]
[1742433096772,0.01204859,86498.0,86497.0,1.64606789]
[1742433096990,0.01204859,86498.0,86497.0,1.63952]
[1742433097167,0.01204859,86498.0,86497.0,0.13952]
[1742433097761,0.01204859,86498.0,86497.0,0.14152]
[1742433098161,0.01204859,86498.0,86497.0,0.13952]
[1742433098568,0.01204859,86498.0,86497.0,0.14052]
[1742433099579,0.01204859,86498.0,86497.0,1.64052]
[1742433099789,0.01204859,86498.0,86497.0,1.63652]
[1742433099991,0.01204859,86498.0,86497.0,1.63852]
[1742433100726,0.11906382,86498.0,86497.0,0.0013388]
[1742433101152,0.11906382,86498.0,86497.0,0.0033388]
[1742433101153,0.82766382,86498.0,86497.0,0.0033388]
[1742433101366,0.84220467,86498.0,86497.0,0.0003388]
[1742433101822,0.84220467,86498.0,86497.0,0.0023388]
[1742433102044,0.84220467,86498.0,86497.0,8e-07]
[1742433102277,0.27669,86474.0,86473.0,0.13552]
[1742433102495,0.196599,86470.0,86469.0,0.57548]
[1742433102699,0.22878604,86470.0,86469.0,0.57548]
[1742433103383,0.196619,86462.0,86460.0,0.10357098]
[1742433103621,0.196614,86464.0,86461.0,0.13552]
[1742433103844,0.196617,86462.0,86461.0,0.13552]
[1742433105066,0.011564,86475.0,86461.0,0.147085]
[1742433105274,0.01155643,86469.0,86465.0,0.011565]
[1742433105493,0.011564,86469.0,86462.0,0.185051]
[1742433105746,0.185045,86466.0,86461.0,0.13552]
[1742433105939,0.19661,86466.0,86461.0,0.13552]
[1742433106174,0.011565,86467.0,86465.0,1.5]
[1742433106384,0.196603,86468.0,86465.0,1.501]
[1742433106626,0.01159242,86469.0,86465.0,0.001]
[1742433107029,0.03218704,86470.0,86468.0,1.5]
[1742433107230,0.04395361,86470.0,86468.0,1.5]
[1742433107373,0.04395361,86470.0,86465.0,0.196608]
[1742433107772,0.24055461,86470.0,86465.0,0.185043]
[1742433108203,0.196603,86469.0,86459.0,0.02030292]
[1742433108438,0.19661,86466.0,86465.0,0.001]
[1742433108643,0.011565,86467.0,86465.0,0.001]
[1742433108991,0.011565,86467.0,86465.0,0.003]
[1742433109438,0.011565,86467.0,86465.0,0.001]
[1742433109632,0.011565,86467.0,86465.0,0.004]
[1742433109842,0.011565,86467.0,86465.0,0.003]
[1742433110039,0.011565,86467.0,86465.0,0.004]
[1742433110266,0.011565,86467.0,86465.0,0.001]
[1742433110427,0.196605,86468.0,86465.0,0.002]
[1742433110629,0.196605,86468.0,86465.0,0.004]
[1742433111457,0.196605,86468.0,86465.0,0.002]
[1742433111897,0.196603,86469.0,86465.0,0.002]
[1742433112095,0.04395361,86470.0,86465.0,0.200609]
[1742433112262,0.24055261,86470.0,86465.0,0.015565]
[1742433112481,0.24055261,86470.0,86465.0,0.004]
[1742433112686,0.196602,86469.0,86465.0,0.002]
[1742433112895,0.011564,86468.0,86465.0,0.002]
[1742433113140,0.196608,86466.0,86465.0,0.002]
[1742433113343,0.196608,86466.0,86465.0,0.003]
[1742433113767,0.011564,86468.0,86463.0,0.0003388]
[1742433113933,0.196605,86468.0,86465.0,0.001]
[1742433114324,0.196605,86468.0,86464.0,0.13552]
[1742433114537,0.196605,86468.0,86465.0,0.002]
[1742433114735,0.011565,86467.0,86464.0,0.13552]
[1742433114999,0.196605,86468.0,86464.0,0.13552]
[1742433115199,0.196605,86468.0,86466.0,1.5]
[1742433115364,0.196605,86468.0,86465.0,0.002]
[1742433115775,0.196605,86468.0,86464.0,0.13552]
[1742433115979,0.196605,86468.0,86467.0,1.5]
[1742433116621,0.011561,86495.0,86488.0,0.011562]
[1742433116796,0.00012507,86490.0,86485.0,0.320521]
[1742433116988,0.184996,86489.0,86485.0,0.13552]
[1742433117398,0.19682791,86489.0,86485.0,0.13552]
[1742433117601,0.19656,86488.0,86485.0,0.13552]
[1742433117778,0.185001,86486.0,86485.0,0.13552]
[1742433117958,0.196563,86486.0,86485.0,0.13552]
[1742433118374,0.196563,86486.0,86485.0,1.63552]
[1742433119477,0.196563,86486.0,86485.0,1.63652]
[1742433120382,0.196563,86486.0,86485.0,1.63752]
[1742433121443,0.19656,86488.0,86485.0,1.63752]
[1742433121650,0.185,86487.0,86485.0,1.63752]
[1742433122201,0.19656,86488.0,86485.0,1.63752]
[1742433122422,0.19656,86488.0,86485.0,1.63652]
[1742433122602,0.20838891,86489.0,86485.0,1.63652]
[1742433122603,0.01183191,86489.0,86485.0,1.63552]
[1742433122806,0.19667907,86490.0,86485.0,1.820523]
[1742433123028,0.19667907,86490.0,86485.0,1.821523]
[1742433123230,0.196558,86489.0,86485.0,1.63652]
[1742433123561,0.011562,86489.0,86485.0,1.63552]
[1742433123757,0.011562,86489.0,86485.0,1.63652]
[1742433124652,0.00012507,86490.0,86489.0,0.011562]
[1742433125085,0.00012507,86490.0,86485.0,0.147082]
[1742433125086,0.184999,86487.0,86485.0,0.13552]
[1742433125285,0.011562,86486.0,86485.0,0.13552]
[1742433125492,0.196561,86487.0,86481.0,0.196574]
[1742433125707,0.011562,86486.0,86485.0,1.5]
[1742433127330,0.011562,86486.0,86485.0,1.501]
[1742433128540,0.011562,86486.0,86485.0,1.502]
[1742433129314,0.04267928,86486.0,86485.0,0.002]
[1742433129525,0.16567928,86486.0,86485.0,0.002]
[1742433130789,0.16567928,86486.0,86485.0,0.001]